bitfinex-derivatives/quotes_ETHF0:USTF0_20250421
["timestamp","ask_amount","ask_price","bid_price","bid_amount"]
[1745250430521,9.1518,1621.7,1621.6,0.03137]
[1745250431127,9.1518,1621.7,1621.6,1.66877]
[1745250431328,7.9188,1621.7,1621.6,7.33093645]
[1745250431527,3.2078,1621.7,1621.6,7.33093645]
[1745250431718,3.2078,1622.0,1621.6,10.07768645]
[1745250431928,4.712,1621.9,1621.8,1.23291]
[1745250432227,9.15265,1621.9,1621.8,1.23291]
[1745250432418,9.15265,1621.9,1621.8,5.66200645]
[1745250432614,9.15265,1621.9,1621.8,4.42909645]
[1745250433223,1.23292,1621.8,1621.7,7.7834]
[1745250433424,1.23292,1621.8,1621.7,6.146]
[1745250433626,14.879273,1621.8,1621.7,4.28116]
[1745250433829,15.59290852,1621.8,1621.7,0.79948]
[1745250434030,1.233,1621.7,1621.6,0.03137]
[1745250434326,6.27735669,1621.7,1621.6,0.03137]
[1745250434523,1.23307,1621.6,1621.5,6.15524613]
[1745250434723,3.87797,1621.6,1621.5,6.15524613]
[1745250434923,8.67497,1621.6,1621.5,6.15524613]
[1745250435525,15.82509555,1621.6,1621.5,6.15524613]
[1745250436327,3.87797,1621.6,1621.5,6.15524613]
[1745250436524,8.67497,1621.6,1621.5,6.15524613]
[1745250436923,1.23365,1620.9,1620.6,4.92]
[1745250437224,8.0048,1621.1,1620.8,1.23365]
[1745250437420,1.23368,1620.8,1620.7,5.33759645]
[1745250437615,3.2078,1621.1,1621.0,1.23353]
[1745250437819,8.0048,1621.2,1621.0,4.42909645]
[1745250438127,9.24742613,1621.2,1621.1,4.42909645]
[1745250438523,10.99122613,1621.2,1621.1,4.42909645]
[1745250439116,6.19422613,1621.2,1621.1,4.42909645]
[1745250439323,9.24842613,1621.2,1621.1,4.42909645]
[1745250440421,3.08486,1620.5,1620.1,2.06818]
[1745250440630,1.23408,1620.3,1620.1,0.834]
[1745250440833,1.23408,1620.3,1620.2,9.9]
[1745250441126,4.8978,1620.7,1620.2,9.9]
[1745250441323,1.23391,1620.5,1620.2,9.9]
[1745250441519,1.23391,1620.5,1620.3,1.24324613]
[1745250441923,1.23391,1620.5,1620.3,6.24324613]
[1745250442122,0.00924613,1620.6,1620.3,6.24324613]
[1745250442419,1.23399,1620.4,1620.3,0.00924613]
[1745250442729,4.44179,1620.4,1620.3,0.00924613]
[1745250443829,9.23979,1620.4,1620.3,0.00924613]
[1745250444931,4.44179,1620.4,1620.3,1.24330613]
[1745250445128,0.00924613,1620.6,1620.3,5.00924613]
[1745250445323,1.23398,1620.5,1620.4,1.23397]
[1745250445635,1.24310613,1620.6,1620.5,1.23391]
[1745250445932,1.24310613,1620.6,1620.5,0.9031]
[1745250446231,1.24310613,1620.6,1620.5,2.13701]
[1745250446433,1.24307613,1620.6,1620.5,2.13701]
[1745250446632,0.00924613,1620.6,1620.5,7.13701]
[1745250446925,2.60540988,1620.6,1620.5,7.13701]
[1745250447525,5.94114563,1620.7,1620.6,1.23383]
[1745250447927,5.94114563,1620.7,1620.6,6.23383]
[1745250448526,5.94114563,1620.7,1620.6,9.44163]
[1745250448527,4.57634563,1620.7,1620.6,9.44163]
[1745250448922,4.57634563,1620.7,1620.6,6.23383]
[1745250449832,0.65281549,1620.8,1620.7,1.23376]
[1745250450329,0.00924613,1620.8,1620.7,16.13376]
[1745250451030,0.00924613,1620.8,1620.7,11.13376]
[1745250452736,1.24292613,1620.8,1620.7,11.13376]
[1745250452932,1.24292613,1620.8,1620.7,1.23376]
[1745250453139,0.00924613,1620.8,1620.7,1.23376]
[1745250453836,0.00924613,1620.8,1620.7,6.23376]
[1745250454334,0.00924613,1620.8,1620.7,7.91736]
[1745250454927,0.00924613,1620.8,1620.7,2.91736]
[1745250456939,6.13e-06,1620.8,1620.7,7.91736]
[1745250457239,6.13e-06,1620.8,1620.7,12.71636]
[1745250457437,3.20780613,1620.8,1620.4,0.8363]
[1745250457643,3.2078,1620.6,1620.5,3.01865]
[1745250458144,3.2078,1620.6,1620.5,11.6848]
[1745250458344,3.2078,1620.6,1620.5,12.91871]
[1745250460251,4.80000613,1620.8,1620.7,1.23376]
[1745250460546,8.00780613,1620.8,1620.7,1.23376]
[1745250461250,9.24148613,1620.8,1620.6,3.01859]
[1745250461448,3.20780613,1620.8,1620.7,1.23376]
[1745250461649,8.00780613,1620.8,1620.7,2.87326]
[1745250461850,3.20780613,1620.8,1620.7,2.87326]
[1745250462749,6.13e-06,1620.8,1620.7,13.75726]
[1745250463048,6.13e-06,1620.8,1620.7,7.11776]
[1745250463346,6.13e-06,1620.8,1620.7,17.01776]
[1745250464451,1.76010613,1620.8,1620.7,17.01776]
[1745250465151,6.13e-06,1620.8,1620.7,11.13376]
[1745250466048,6.13e-06,1620.8,1620.7,14.34156]
[1745250466247,6.13e-06,1620.8,1620.7,11.13376]
[1745250466444,6.13e-06,1620.8,1620.7,16.13376]
[1745250466738,6.13e-06,1620.8,1620.7,17.02916]
[1745250466942,6.13e-06,1620.8,1620.7,12.02916]
[1745250467139,6.13e-06,1620.8,1620.7,13.82256]
[1745250467344,6.13e-06,1620.8,1620.7,18.82256]
[1745250468147,3.2078,1621.5,1621.4,1.2331]
[1745250468352,15.74853717,1621.6,1621.5,1.23303]
[1745250468749,17.41103717,1621.6,1621.5,1.23303]
[1745250469054,17.41103717,1621.6,1621.4,3.02644]
[1745250469055,12.45703717,1621.6,1621.4,3.02644]
[1745250469359,6.10333,1621.5,1621.4,3.0265]
[1745250470351,1.2331,1621.4,1621.3,0.00924613]
[1745250470548,8.7758,1621.4,1621.3,0.00924613]
[1745250470752,3.8218,1621.4,1621.3,0.00924613]
[1745250470948,8.1618,1621.5,1621.3,0.00924613]
[1745250470949,3.2078,1621.5,1621.3,0.00924613]
[1745250471152,6.15513,1621.5,1621.4,1.2331]
[1745250471555,4.9221,1621.5,1621.4,1.2331]
[1745250471948,6.15513,1621.5,1621.4,3.0079]
[1745250472148,6.15513,1621.5,1621.4,1.2331]
[1745250472348,4.9221,1621.5,1621.4,1.2331]
[1745250473758,6.15513,1621.5,1621.4,1.2331]
[1745250473959,4.9221,1621.5,1621.4,1.2331]
[1745250474155,1.2331,1621.4,1621.3,3.01716613]
[1745250474350,2.8826,1621.4,1621.3,1.24236613]
[1745250474557,4.6148,1621.4,1621.3,0.00924613]
[1745250475059,4.6148,1621.4,1621.3,1.24242613]
[1745250475561,3.3817,1621.4,1621.3,1.24242613]
[1745250477259,3.2078,1621.5,1621.4,1.2331]
[1745250477456,3.2078,1621.5,1621.4,2.9042]
[1745250478959,4.9404,1621.5,1621.4,2.9042]
[1745250480357,6.17343,1621.5,1621.4,2.9042]
[1745250480757,6.17343,1621.5,1621.4,1.2331]
[1745250482259,1.2331,1621.4,1621.3,1.74784613]
[1745250482470,1.23333,1621.2,1621.1,1.23329]
[1745250482664,3.2078,1621.6,1621.1,17.00244]
[1745250482857,3.2078,1621.6,1621.5,1.23303]
[1745250483658,3.04761613,1621.7,1621.6,1.23295]
[1745250484455,6.13e-06,1621.7,1621.6,6.23295]
[1745250484661,6.57179818,1621.8,1621.7,1.23287]
[1745250484855,5.06669818,1621.8,1621.7,3.91807]
[1745250485067,5.06669818,1621.8,1621.7,18.81807]
[1745250485463,5.06669818,1621.8,1621.7,13.81807]
[1745250486067,0.00924613,1621.9,1621.8,1.2328]
[1745250486368,0.00924613,1621.9,1621.8,3.0304]
[1745250486863,3.21704613,1621.9,1621.5,9.0918]
[1745250487072,2.09535,1621.8,1621.7,1.23287]
[1745250487370,4.67445,1621.8,1621.7,1.23287]
[1745250487770,1.23287,1621.7,1621.6,9.9]
[1745250487961,1.23295,1621.6,1621.5,7.11698]
[1745250488158,1.23303,1621.5,1621.4,3.86859613]
[1745250488364,2.94,1621.6,1621.5,1.23303]
[1745250489074,2.94,1621.6,1620.8,5.884]
[1745250489075,3.08295,1621.3,1620.8,5.884]
[1745250489369,4.44121,1621.0,1620.9,1.23348]
[1745250489664,1.23351,1620.9,1620.8,1.23351]
[1745250489864,4.44126,1621.0,1620.9,1.23348]
[1745250490371,1.23348,1620.9,1620.8,1.24273613]
[1745250490672,1.23348,1620.9,1620.8,0.00924613]
[1745250492671,1.23348,1620.9,1620.8,1.24280613]
[1745250492864,6.18548,1620.9,1620.8,1.24280613]
[1745250493265,9.39321,1621.0,1620.9,1.23348]
[1745250493468,0.00924613,1621.1,1621.0,1.23341]
[1745250493670,6.19457613,1621.1,1621.0,1.23341]
[1745250493865,1.23341,1621.0,1620.9,3.01553]
[1745250494177,4.44121,1621.0,1620.9,1.23343]
[1745250494671,3.2078,1621.0,1620.9,1.23343]
[1745250494861,3.2078,1621.0,1620.9,2.88233]
[1745250495471,0.00924613,1621.1,1621.0,1.23341]
[1745250495672,0.00924613,1621.1,1621.0,6.09011]
[1745250496870,0.00924613,1621.1,1621.0,15.99011]
[1745250497579,0.00924613,1621.1,1621.0,20.99011]
[1745250497778,12.95428717,1621.5,1621.1,3.08318]
[1745250497982,12.95428717,1621.5,1621.4,1.2331]
[1745250498282,12.95428717,1621.5,1621.2,7.964]
[1745250498283,1.23318,1621.3,1621.2,6.11407]
[1745250499082,1.23325,1621.2,1621.1,7.11728]
[1745250499480,1.23325,1621.2,1621.1,5.884]
[1745250500480,9.33405,1621.2,1621.1,5.884]
[1745250500980,9.33405,1621.2,1621.1,7.11733]
[1745250501178,9.33405,1621.2,1621.1,5.884]
[1745250502183,1.23341,1621.0,1620.9,2.90658]
[1745250503380,2.92488,1621.1,1620.9,2.90658]
[1745250503582,3.21704613,1621.4,1621.3,1.23318]
[1745250504282,4.45014613,1621.4,1621.3,1.23318]
[1745250504482,6.18194613,1621.4,1621.3,1.23318]
[1745250504882,4.94884613,1621.4,1621.3,1.23318]
[1745250505286,0.00924613,1621.4,1621.3,4.44098]
[1745250505485,0.00924613,1621.4,1621.3,5.32078]
[1745250505787,1.24234613,1621.4,1621.3,5.32078]
[1745250505973,1.24234613,1621.4,1621.3,1.23318]
[1745250506278,1.74104613,1621.4,1621.3,1.23318]
[1745250507589,0.00924613,1621.4,1621.3,1.23318]
[1745250507881,0.00924613,1621.4,1621.3,7.11718]
[1745250508079,6.13e-06,1621.4,1621.3,15.32498]
[1745250508278,6.13e-06,1621.4,1621.3,16.15318]
[1745250508474,6.13e-06,1621.4,1621.3,12.82278]
[1745250509786,6.13e-06,1621.4,1621.3,11.99458]
[1745250512792,6.13e-06,1621.4,1621.3,16.99458]
[1745250513995,2.89953937,1621.7,1621.6,1.23295]
[1745250514187,9.37e-06,1621.7,1621.6,14.33275]
[1745250514386,9.37e-06,1621.7,1621.6,24.23275]
[1745250515390,5.5e-06,1621.8,1621.7,1.23287]
[1745250515584,5.5e-06,1621.8,1621.7,8.84827]
[1745250515887,8.56314267,1621.9,1621.8,1.2328]
[1745250516094,7.19133267,1621.9,1621.8,16.9602]
[1745250516387,2.67e-06,1621.9,1621.8,16.9602]
[1745250516595,2.67e-06,1621.9,1621.8,17.8052]
[1745250517496,2.67e-06,1621.9,1621.8,22.8052]
[1745250517703,0.00606845,1622.0,1621.9,1.23272]
[1745250517993,8.45e-06,1622.0,1621.9,2.96412]
[1745250518491,8.45e-06,1622.0,1621.9,23.74812]
[1745250518696,6.72903142,1622.2,1622.1,1.23257]
[1745250518886,0.79730142,1622.2,1622.1,12.00757]
[1745250519089,1.42e-06,1622.3,1622.2,1.23249]
[1745250519393,1.42e-06,1622.3,1622.2,16.03069]
[1745250519690,1.42e-06,1622.3,1622.2,28.64659]
[1745250520096,1.42e-06,1622.3,1622.2,23.64659]
[1745250521204,1.42e-06,1622.3,1622.2,28.53759]
[1745250522206,1.42e-06,1622.3,1622.2,33.53759]
[1745250522706,1.42e-06,1622.3,1622.2,33.53659]
[1745250523302,0.8199,1622.9,1622.8,1.23204]
[1745250523504,2.5639,1622.9,1622.8,1.23204]
[1745250523899,2.5639,1622.9,1622.8,2.97774]
[1745250524706,1.23193,1623.0,1622.8,12.17186]
[1745250524909,4.8608,1622.9,1622.8,1.23204]
[1745250525107,1.653,1622.9,1622.8,1.23204]
[1745250525306,1.653,1622.9,1622.8,11.13204]
[1745250526207,2.06535,1623.0,1622.9,1.23196]
[1745250526510,2.06529,1623.0,1622.9,2.89336]
[1745250526803,1.23196,1622.9,1622.8,11.13197]
[1745250527009,6.98846,1622.9,1622.8,11.13197]
[1745250527206,1.23204,1622.8,1622.7,0.00924613]
[1745250527406,1.23242,1622.4,1622.2,3.2078]
[1745250527607,1.6396,1622.3,1622.1,7.5454]
[1745250527908,1.23249,1622.2,1622.1,8.77793]
[1745250528413,2.87209,1622.2,1622.1,10.07793]
[1745250528911,1.6396,1622.2,1622.1,10.07793]
[1745250530100,1.6396,1622.2,1622.1,8.41653]
[1745250530306,2.87209,1622.2,1622.1,2.53253]
[1745250530500,3.71869,1622.2,1622.1,2.53253]
[1745250530707,3.71869,1622.2,1622.1,1.3]
[1745250531212,3.71869,1622.2,1622.1,2.53257]
[1745250532713,2.4862,1622.2,1622.1,1.23257]
[1745250533102,2.4862,1622.2,1622.1,2.53257]
[1745250534711,0.8466,1622.2,1622.1,2.53257]
[1745250535114,2.07909,1622.2,1622.1,4.29177]
[1745250535315,0.00924613,1622.3,1622.1,1.3]
[1745250535515,0.00924613,1622.3,1622.2,6.19949]
[1745250535717,0.00924613,1622.3,1622.2,10.99549]
[1745250535905,0.00924613,1622.3,1622.2,16.87949]
[1745250536209,0.00924613,1622.3,1622.2,18.17949]
[1745250537315,0.00924613,1622.3,1622.2,13.21249]
[1745250537517,1.24166613,1622.3,1622.2,8.41649]
[1745250537716,3.04056613,1622.3,1622.2,8.41649]
[1745250537917,1.80814613,1622.3,1622.2,11.62429]
[1745250538114,6.13e-06,1622.3,1622.2,13.32609]
[1745250539020,1.23242613,1622.3,1622.2,10.11829]
[1745250539218,2.62590613,1622.3,1622.2,8.41649]
[1745250539522,3.85832613,1622.3,1622.2,1.3]
[1745250539718,8.85832613,1622.3,1622.2,1.3]
[1745250539917,1.23257,1622.1,1622.0,0.00924613]
[1745250540417,6.23257,1622.1,1622.0,0.00924613]
[1745250540722,1.23272,1621.9,1621.8,1.3]
[1745250541226,1.23272,1621.9,1621.8,2.5328]
[1745250541521,2.09772,1621.9,1621.8,2.5328]
[1745250542121,0.865,1621.9,1621.8,2.5328]
[1745250542615,2.5994,1621.9,1621.8,2.5328]
[1745250543527,3.83212,1621.9,1621.8,2.5328]
[1745250544719,2.5994,1621.9,1621.8,2.5328]
[1745250545023,0.8209,1622.2,1622.1,1.23257]
[1745250545223,2.6139,1622.2,1622.1,1.23257]
[1745250545813,1.2327,1622.0,1621.9,1.23268]
[1745250546015,1.23272,1621.9,1621.8,2.53274]
[1745250546216,2.98342,1621.9,1621.8,2.53274]
[1745250546627,3.80772,1621.9,1621.8,2.53274]
[1745250547627,2.575,1621.9,1621.8,2.53274]
[1745250547830,3.80772,1621.9,1621.8,2.5328]
[1745250548327,1.2328,1621.8,1621.7,1.24209613]
[1745250548526,3.8723,1621.8,1621.7,1.24209613]
[1745250548731,3.8723,1621.8,1621.7,2.54209613]
[1745250549123,12.0801,1621.8,1621.7,0.00924613]
[1745250550127,7.0801,1621.8,1621.7,1.24211613]
[1745250550631,2.6395,1621.8,1621.7,1.24211613]
[1745250551124,2.6395,1621.8,1621.7,2.97161613]
[1745250552028,2.05702,1621.9,1621.8,1.2328]
[1745250552224,0.8243,1621.9,1621.8,1.2328]
[1745250552425,2.05702,1621.9,1621.8,1.2328]
[1745250552626,2.5384,1621.9,1621.8,1.2328]
[1745250552926,0.8852,1622.0,1621.9,1.23272]
[1745250553123,1.7141,1622.1,1622.0,1.23265]
[1745250553320,8.10035987,1622.2,1622.1,1.23257]
[1745250553520,6.46074068,1622.3,1622.2,1.23249]
[1745250553816,5.22392068,1622.3,1622.2,15.12129]
[1745250554019,5.22392068,1622.3,1622.2,22.35591297]
[1745250554020,1.54752068,1622.3,1622.2,22.35591297]
[1745250554223,6.8e-07,1622.3,1622.2,22.35591297]
[1745250554618,12.20224061,1622.9,1622.5,3.08054]
[1745250554820,1.7828,1623.0,1622.9,1.23196]
[1745250555021,1.7141,1623.0,1622.9,1.23196]
[1745250555225,3.21704613,1623.1,1623.0,1.23189]
[1745250555529,3.21704613,1623.1,1622.8,1.6342]
[1745250555721,3.21704613,1623.1,1623.0,1.23189]
[1745250556322,4.98574613,1623.1,1623.0,1.23189]
[1745250556728,1.77794613,1623.1,1623.0,1.23189]
[1745250557327,0.00924613,1623.1,1623.0,2.86609]
[1745250557726,6.13e-06,1623.1,1623.0,7.86609]
[1745250557921,6.13e-06,1623.1,1623.0,8.68579]
[1745250558227,6.13e-06,1623.1,1623.0,9.98579]
[1745250558430,6.13e-06,1623.1,1623.0,4.98579]
[1745250558631,6.13e-06,1623.1,1623.0,9.98579]
[1745250559731,12.20224061,1623.8,1623.6,1.23139]
[1745250559930,1.23136,1623.7,1623.5,3.2078]
[1745250560131,1.76,1623.7,1623.6,1.23141]
[1745250561034,12.20224061,1623.8,1623.7,1.23136]
[1745250561335,12.20224061,1623.8,1623.7,4.43916]
[1745250561532,10.56582061,1623.8,1623.7,9.16916]
[1745250561745,9.26572061,1623.8,1623.7,9.16916]
[1745250562235,9.26572061,1623.8,1623.7,15.46916]
[1745250562537,7.86229061,1623.8,1623.7,15.46916]
[1745250562741,3.26373061,1623.8,1623.7,15.46916]
[1745250563029,0.87085061,1623.8,1623.7,15.46916]
[1745250563235,3.2078,1624.7,1624.3,1.2309]
[1745250563438,2.89963846,1624.4,1624.2,4.43872]
[1745250563634,2.89963846,1624.4,1624.3,1.2309]
[1745250563835,2.89963846,1624.4,1624.2,6.13912]
[1745250564035,1.2309,1624.3,1624.2,3.2078]
[1745250564331,1.23105,1624.1,1623.9,5.96015]
[1745250564533,1.23105,1624.1,1624.0,1.23113]
[1745250564936,1.23105,1624.1,1623.9,1.23114]
[1745250565137,1.23105,1624.1,1624.0,1.23113]
[1745250565333,1.23105,1624.1,1623.8,1.7898]
[1745250565334,3.07754,1624.2,1623.8,3.02105]
[1745250565537,1.2312,1623.9,1623.8,1.7898]
[1745250565937,3.2078,1624.3,1623.7,6.029]
[1745250566239,1.23108,1624.1,1624.0,3.2078]
[1745250566631,4.0304,1624.3,1624.0,3.2078]
[1745250566833,1.23105,1624.1,1624.0,4.43888]
[1745250567038,1.23105,1624.1,1624.0,3.2078]
[1745250567242,1.23113,1624.0,1623.9,1.23115]
[1745250567433,1.7063,1624.0,1623.9,1.23115]
[1745250567630,1.7063,1624.0,1623.9,6.18865]
[1745250567928,2.93732,1624.2,1624.1,1.23105]
[1745250568126,0.8226,1624.3,1624.1,1.23105]
[1745250568338,3.75281846,1624.3,1624.2,2.98068]
[1745250568638,2.52191846,1624.3,1624.2,2.98068]
[1745250569040,0.8771,1624.5,1624.3,1.23084]
[1745250569347,1.23086,1624.4,1624.3,1.23084]
[1745250569738,2.93716,1624.4,1624.3,1.23084]
[1745250570036,1.7063,1624.4,1624.2,1.7497]
[1745250570240,2.93719,1624.4,1624.3,1.2309]
[1745250571839,0.8166,1624.6,1624.3,3.07722]
[1745250572141,0.8166,1624.6,1624.4,2.96675]
[1745250572142,2.89918,1624.5,1624.4,2.96675]
[1745250572738,2.89918,1624.5,1624.4,1.23075]
[1745250574541,2.89918,1624.5,1624.4,2.85935]
[1745250576639,1.6684,1624.5,1624.4,2.85935]
[1745250576843,2.89915,1624.5,1624.4,2.85935]
[1745250578236,1.6684,1624.5,1624.4,2.85935]
[1745250578438,2.04733,1624.6,1624.5,1.23075]
[1745250578638,2.04733,1624.6,1624.5,2.88315]
[1745250578947,3.75513,1624.6,1624.5,2.88315]
[1745250580240,3.75513,1624.6,1624.5,1.6524]
[1745250580445,1.23075,1624.5,1624.4,1.23076]
[1745250580745,2.94345,1624.5,1624.4,1.23076]
[1745250581438,4.78958,1624.5,1624.3,3.21704613]
[1745250581644,1.23082,1624.4,1624.3,0.00924613]
[1745250581842,2.94352,1624.4,1623.9,3.2078]
[1745250582048,2.94352,1624.4,1623.9,1.2312]
[1745250582049,4.439,1624.0,1623.9,1.2312]
[1745250582232,1.23128,1623.8,1623.7,2.53132]
[1745250582436,1.23128,1623.8,1623.7,2.53129]
[1745250582633,3.77986,1623.9,1623.8,1.23128]
[1745250582842,3.7798,1623.9,1623.8,1.23128]
[1745250583147,2.5486,1623.9,1623.8,1.23128]
[1745250583741,3.7798,1623.9,1623.8,1.23128]
[1745250583943,2.5486,1623.9,1623.8,4.43908]
[1745250584256,8.7697,1624.2,1623.9,6.1558]
[1745250584447,1.23113,1624.1,1624.0,1.23111]
[1745250584945,5.27474,1624.2,1624.1,1.23105]
[1745250585145,1.23108,1624.1,1624.0,1.23107]
[1745250585348,1.6389,1624.1,1624.0,1.23107]
[1745250585546,2.86995,1624.1,1624.0,1.23107]
[1745250586348,1.23113,1624.0,1623.9,3.01915]
[1745250586547,1.6412,1624.0,1623.9,3.01915]
[1745250587041,2.87233,1624.0,1623.9,3.01915]
[1745250587238,9.06032,1624.8,1624.4,1.23082]
[1745250587440,0.00226459,1624.5,1624.4,4.43862]
[1745250587650,1.23301459,1624.5,1624.4,4.43862]
[1745250588146,1.23082,1624.4,1624.3,2.86227]
[1745250588348,2.87202,1624.4,1624.3,2.86227]
[1745250588859,2.87202,1624.4,1624.3,2.8623]
[1745250589048,3.79932,1624.4,1624.3,1.2309]
[1745250589248,2.5685,1624.4,1624.3,1.2309]
[1745250589551,3.79932,1624.4,1624.3,3.0163]
[1745250589741,3.79939,1624.4,1624.3,1.2309]
[1745250590346,1.2309,1624.3,1624.2,4.43871]
[1745250590548,2.9648,1624.3,1624.2,4.43871]
[1745250591053,2.9648,1624.3,1624.2,3.2078]
[1745250591349,2.9648,1624.3,1624.2,4.43878]
[1745250591548,2.9648,1624.3,1624.2,3.2078]
[1745250592149,2.9648,1624.3,1624.2,4.43878]
[1745250593751,1.7339,1624.3,1624.2,4.43878]
[1745250594550,2.15815,1624.4,1624.3,1.2309]
[1745250594853,3.90605,1624.4,1624.3,2.9121]
[1745250596257,0.00226459,1624.5,1624.4,1.23082]
[1745250596460,2.98091459,1624.5,1624.4,2.91202]
[1745250597249,2.98091459,1624.5,1624.4,1.6812]
[1745250597650,2.98091459,1624.5,1624.2,3.2078]
[1745250597651,1.2309,1624.3,1624.2,3.2078]
[1745250598259,4.82704459,1624.5,1624.2,3.2078]
[1745250598463,1.2309,1624.3,1624.2,6.2243]
[1745250599357,1.2309,1624.3,1624.2,3.0165]
[1745250599857,1.75016459,1624.5,1624.4,1.23082]
[1745250600060,1.23301459,1624.5,1624.4,1.23082]
[1745250600260,1.23089,1624.4,1624.3,1.23084]
[1745250600458,1.70466459,1624.5,1624.2,8.07068]
[1745250600664,1.23088,1624.4,1624.3,1.23084]
[1745250601458,1.2309,1624.3,1624.2,6.22432]
[1745250601760,1.23087,1624.4,1624.3,1.23084]
[1745250601952,3.03597,1624.4,1624.3,1.23084]
[1745250602153,1.23087,1624.4,1624.3,1.23084]
[1745250603758,1.2309,1624.3,1624.2,6.22433]
[1745250603960,1.2309,1624.3,1624.2,3.01653]
[1745250604264,1.2309,1624.3,1624.2,6.22433]
[1745250605959,1.23105,1624.1,1623.9,3.2078]
[1745250606164,1.23113,1624.0,1623.9,1.7131]
[1745250606462,2.95823,1624.0,1623.9,1.7131]
[1745250606857,1.2312,1623.9,1623.8,3.2078]
[1745250607057,2.8975,1623.9,1623.8,3.2078]
[1745250607766,1.23128,1623.8,1623.7,0.00924613]
[1745250608066,2.89758,1623.8,1623.7,0.00924613]
[1745250608453,3.81478,1623.8,1623.7,0.00924613]
[1745250609265,1.23149,1623.6,1623.5,1.23145]
[1745250609468,0.9253,1623.7,1623.6,1.23143]
[1745250609666,2.5916,1623.7,1623.6,1.23143]
[1745250610062,2.5916,1623.7,1623.6,2.88863]
[1745250610470,3.82296,1623.7,1623.6,1.6572]
[1745250610671,1.23143,1623.6,1623.5,3.21704613]
[1745250610872,1.23143,1623.6,1623.5,4.87424613]
[1745250611872,1.23143,1623.6,1623.5,6.10574613]
[1745250612073,2.89553,1623.6,1623.5,6.10574613]
[1745250613068,1.23143,1623.6,1623.5,6.10574613]
[1745250613271,3.80512,1623.7,1623.6,1.23143]
[1745250613571,3.80512,1623.7,1623.6,1.7999]
[1745250614968,2.5737,1623.7,1623.6,3.03133]
[1745250615164,0.00924613,1623.8,1623.7,1.23136]
[1745250615467,0.00924613,1623.8,1623.7,7.16516]
[1745250615769,1.24052613,1623.8,1623.7,7.16516]
[1745250615970,1.24052613,1623.8,1623.7,6.23906]
[1745250616371,0.00924613,1623.8,1623.5,3.21704613]
[1745250616674,2.98929,1623.7,1623.6,1.23143]
[1745250616873,2.98929,1623.7,1623.6,2.87473]
[1745250618866,2.98929,1623.7,1623.6,1.6433]
[1745250619269,2.98929,1623.7,1623.6,2.87473]
[1745250622176,1.23143,1623.6,1623.5,0.00924613]
[1745250622369,3.07878,1623.5,1623.2,3.2078]
[1745250622562,1.23173,1623.2,1623.1,2.91755]
[1745250622772,1.23173,1623.2,1623.1,4.21755]
[1745250622972,1.23173,1623.2,1623.1,2.9858]
[1745250623172,1.23173,1623.2,1623.1,4.21761]
[1745250623674,1.23181,1623.1,1623.0,0.00924613]
[1745250623874,2.97981,1623.1,1623.0,0.00924613]
[1745250624076,2.97981,1623.1,1623.0,1.24113613]
[1745250624373,2.97981,1623.1,1623.0,4.22693613]
[1745250624569,4.561,1623.3,1623.2,1.23173]
[1745250624774,1.23162,1623.4,1623.3,1.23158]
[1745250624975,1.23162,1623.4,1623.3,2.88788]
[1745250625174,2.97957,1623.5,1623.4,1.23158]
[1745250625375,2.97957,1623.5,1623.4,2.88788]
[1745250625567,1.748,1623.5,1623.2,3.2078]
[1745250625775,1.23158,1623.4,1623.3,1.6563]
[1745250626176,2.89428,1623.4,1623.3,1.6563]
[1745250626681,2.89428,1623.4,1623.3,2.88796]
[1745250627979,2.89428,1623.4,1623.3,1.6563]
[1745250628182,1.23166,1623.3,1623.2,1.23169]
[1745250628376,3.00136,1623.3,1623.2,1.23169]
[1745250628881,1.7697,1623.3,1623.2,1.23169]
[1745250629082,3.00136,1623.3,1623.2,1.23169]
[1745250632784,3.00136,1623.3,1623.2,3.03569]
[1745250633982,1.23181,1623.1,1623.0,3.21704613]
[1745250634380,1.23181,1623.1,1623.0,4.44893613]
[1745250634586,2.6794,1623.2,1623.1,1.23181]
[1745250634781,3.91113,1623.2,1623.1,1.705]
[1745250634994,3.91113,1623.2,1623.1,2.93681]
[1745250635692,3.91113,1623.2,1623.1,1.705]
[1745250636282,1.23181,1623.1,1623.0,3.21704613]
[1745250636483,2.94731,1623.1,1623.0,3.21704613]
[1745250637598,1.23204,1622.8,1622.6,4.562]
[1745250637800,1.23211,1622.7,1622.6,2.89803]
[1745250638096,1.23211,1622.7,1622.6,4.19803]
[1745250638298,1.23211,1622.7,1622.6,1.3]
[1745250638490,1.23227,1622.5,1622.4,3.80439]
[1745250638884,1.23227,1622.5,1622.4,5.10439]
[1745250639091,1.23227,1622.5,1622.4,3.8721]
[1745250639293,4.44007,1622.5,1622.4,2.9659]
[1745250639698,3.2078,1622.5,1622.4,4.19824]
[1745250639889,0.00924613,1622.6,1622.5,1.23227]
[1745250640089,0.00924613,1622.6,1622.5,7.09637]
[1745250640301,0.00924613,1622.6,1622.5,12.09637]
[1745250641301,0.00924613,1622.6,1622.5,13.39637]
[1745250642199,0.00924613,1622.6,1622.5,17.95937]
[1745250642992,0.00924613,1622.6,1622.5,12.95937]
[1745250644198,0.00924613,1622.6,1622.5,17.95937]
[1745250645505,0.00924613,1622.6,1622.5,12.95937]
[1745250646100,1.24143613,1622.6,1622.5,4.19817]
[1745250646906,0.00924613,1622.6,1622.5,4.19817]
[1745250647401,4.43971,1623.0,1622.9,1.23196]
[1745250647602,2.5897,1623.2,1622.8,3.2078]
[1745250647809,3.00468,1623.4,1623.3,1.23166]
[1745250647993,1.23166,1623.3,1623.2,2.10947]
[1745250648198,1.23166,1623.3,1623.2,3.83177]
[1745250648806,0.00924613,1623.4,1623.3,1.23166]
[1745250649007,1.24082613,1623.4,1623.3,2.95396]
[1745250649206,0.00924613,1623.4,1623.3,2.95396]
[1745250649507,1.24082613,1623.4,1623.3,2.95396]
[1745250649711,2.93532613,1623.4,1623.3,1.7223]